[Event "Live Chess"]
[Site "Chess.com"]
[Date "2023.05.21"]
[Round "-"]
[White "LanceMaster23"]
[Black "domrobson"]
[Result "1-0"]
[WhiteElo "1879"]
[BlackElo "1762"]
[TimeControl "300"]
[EndTime "17:05:17 PDT"]
[Termination "LanceMaster23 won by resignation"]

1. Nf3 {[%clk 0:04:57.4]} 1... Nf6 {[%clk 0:04:58.3]} 2. d4 {[%clk 0:04:56.9]}
2... d5 {[%clk 0:04:57.2]} 3. Bf4 {[%clk 0:04:56.5]} 3... e6 {[%clk 0:04:55.6]}
4. e3 {[%clk 0:04:56]} 4... c5 {[%clk 0:04:55]} 5. c3 {[%clk 0:04:55.2]} 5...
Nc6 {[%clk 0:04:54.2]} 6. Nbd2 {[%clk 0:04:54.6]} 6... Qb6 {[%clk 0:04:53]} 7.
Qb3 {[%clk 0:04:52.8]} 7... Be7 {[%clk 0:04:50.1]} 8. Be2 {[%clk 0:04:51.6]}
8... O-O {[%clk 0:04:49]} 9. h3 {[%clk 0:04:50.9]} 9... c4 {[%clk 0:04:47.9]}
10. Qc2 {[%clk 0:04:49.8]} 10... Qd8 {[%clk 0:04:46.5]} 11. O-O {[%clk 0:04:49]}
11... Bd6 {[%clk 0:04:45.9]} 12. Bxd6 {[%clk 0:04:45.1]} 12... Qxd6 {[%clk
0:04:44.1]} 13. e4 {[%clk 0:04:44.8]} 13... dxe4 {[%clk 0:04:42.8]} 14. Nxe4
{[%clk 0:04:44.7]} 14... Nxe4 {[%clk 0:04:41.9]} 15. Qxe4 {[%clk 0:04:44.4]}
15... Re8 {[%clk 0:04:39.5]} 16. Bxc4 {[%clk 0:04:42.8]} 16... e5 {[%clk
0:04:38.6]} 17. Rfe1 {[%clk 0:04:15.8]} 17... Bd7 {[%clk 0:04:30.4]} 18. Nxe5
{[%clk 0:04:12.4]} 18... Nxe5 {[%clk 0:04:29.1]} 19. dxe5 {[%clk 0:04:11.9]}
19... Qc5 {[%clk 0:04:27.7]} 20. Qd5 {[%clk 0:03:58.5]} 20... Qxd5 {[%clk
0:04:25.6]} 21. Bxd5 {[%clk 0:03:58.4]} 21... Bc6 {[%clk 0:04:25]} 22. Bxc6
{[%clk 0:03:57.4]} 22... bxc6 {[%clk 0:04:24.9]} 23. Rad1 {[%clk 0:03:54.4]} 1-0

[Event "Live Chess"]
[Site "Chess.com"]
[Date "2023.05.21"]
[Round "-"]
[White "stevochess11"]
[Black "Singapourfeuj"]
[Result "1-0"]
[WhiteElo "1794"]
[BlackElo "2180"]
[TimeControl "300"]
[EndTime "17:05:27 PDT"]
[Termination "stevochess11 won - game abandoned"]

1. d4 {[%clk 0:04:56.4]} 1... Nf6 {[%clk 0:04:58.7]} 2. Nf3 {[%clk 0:04:55.2]}
2... g6 {[%clk 0:04:58.1]} 3. Nc3 {[%clk 0:04:49.7]} 3... Bg7 {[%clk 0:04:57]}
4. e4 {[%clk 0:04:47.2]} 4... d6 {[%clk 0:04:56.4]} 5. Be3 {[%clk 0:04:46.1]}
5... O-O {[%clk 0:04:55.3]} 6. Qd2 {[%clk 0:04:45.1]} 6... Ng4 {[%clk
0:04:54.1]} 7. Bg5 {[%clk 0:04:43.9]} 7... h6 {[%clk 0:04:53.3]} 8. Bh4 {[%clk
0:04:41.8]} 8... e5 {[%clk 0:04:51.8]} 9. d5 {[%clk 0:04:31.3]} 9... Qe8 {[%clk
0:04:49.1]} 10. h3 {[%clk 0:04:24.3]} 10... Nf6 {[%clk 0:04:46.8]} 11. Bxf6
{[%clk 0:04:18.9]} 11... Bxf6 {[%clk 0:04:45.9]} 12. Qxh6 {[%clk 0:04:18.1]}
12... Bg7 {[%clk 0:04:45.2]} 13. Qh4 {[%clk 0:04:13]} 13... f6 {[%clk 0:04:44]}
14. Be2 {[%clk 0:04:00.4]} 14... Na6 {[%clk 0:04:41.1]} 15. Bxa6 {[%clk
0:03:56.5]} 15... bxa6 {[%clk 0:04:39.1]} 16. O-O {[%clk 0:03:53.4]} 16... Rb8
{[%clk 0:04:38.5]} 17. b3 {[%clk 0:03:48.4]} 17... g5 {[%clk 0:04:37.1]} 18. Qg3
{[%clk 0:03:44.1]} 18... Qg6 {[%clk 0:04:34.6]} 19. Nh4 {[%clk 0:03:38.6]} 19...
Qh7 {[%clk 0:04:31.9]} 20. Nf3 {[%clk 0:03:27.6]} 20... Qh5 {[%clk 0:04:19.7]}
21. Nd1 {[%clk 0:03:22.4]} 21... Bh6 {[%clk 0:04:16.4]} 22. Ne3 {[%clk
0:03:19.8]} 1-0

[Event "Live Chess"]
[Site "Chess.com"]
[Date "2023.05.21"]
[Round "-"]
[White "Tushinskiy"]
[Black "Ed_Knox"]
[Result "1-0"]
[WhiteElo "2174"]
[BlackElo "1468"]
[TimeControl "300"]
[EndTime "17:05:27 PDT"]
[Termination "Tushinskiy won by checkmate"]

1. d4 {[%clk 0:04:58.8]} 1... g6 {[%clk 0:04:57.1]} 2. c3 {[%clk 0:04:58.7]}
2... Bg7 {[%clk 0:04:56.2]} 3. Nf3 {[%clk 0:04:56.9]} 3... d6 {[%clk 0:04:54.9]}
4. Bf4 {[%clk 0:04:56.1]} 4... Nd7 {[%clk 0:04:53.1]} 5. e4 {[%clk 0:04:54.6]}
5... e5 {[%clk 0:04:51.8]} 6. dxe5 {[%clk 0:04:54.1]} 6... dxe5 {[%clk
0:04:50.8]} 7. Bg3 {[%clk 0:04:53]} 7... Ne7 {[%clk 0:04:38.2]} 8. Nbd2 {[%clk
0:04:51.8]} 8... f5 {[%clk 0:04:34.4]} 9. exf5 {[%clk 0:04:48.2]} 9... Nxf5
{[%clk 0:04:33]} 10. Bc4 {[%clk 0:04:45.2]} 10... Nc5 {[%clk 0:04:19.1]} 11. O-O
{[%clk 0:04:41.8]} 11... Nxg3 {[%clk 0:04:07.4]} 12. hxg3 {[%clk 0:04:41.7]}
12... e4 {[%clk 0:04:06.2]} 13. Re1 {[%clk 0:04:39]} 13... Bg4 {[%clk
0:03:43.9]} 14. Nxe4 {[%clk 0:04:34.6]} 14... Qxd1 {[%clk 0:03:39.8]} 15. Raxd1
{[%clk 0:04:34.5]} 15... Bxf3 {[%clk 0:03:20.1]} 16. Nxc5+ {[%clk 0:04:32.7]}
16... Kf8 {[%clk 0:03:13.5]} 17. gxf3 {[%clk 0:04:31.4]} 17... b6 {[%clk
0:03:00]} 18. Nd7# {[%clk 0:04:27.7]} 1-0

[Event "Live Chess"]
[Site "Chess.com"]
[Date "2023.05.21"]
[Round "-"]
[White "NAZRIZ1977"]
[Black "1600x"]
[Result "1/2-1/2"]
[WhiteElo "2009"]
[BlackElo "1832"]
[TimeControl "300"]
[EndTime "17:05:45 PDT"]
[Termination "Game drawn - insufficient material"]

1. d4 {[%clk 0:04:54]} 1... e5 {[%clk 0:04:59.9]} 2. e4 {[%clk 0:04:52.9]} 2...
Qe7 {[%clk 0:04:58.5]} 3. Nf3 {[%clk 0:04:50.7]} 3... exd4 {[%clk 0:04:56.3]} 4.
Bd3 {[%clk 0:04:44.7]} 4... Nf6 {[%clk 0:04:54.3]} 5. O-O {[%clk 0:04:44.1]}
5... Nc6 {[%clk 0:04:52.5]} 6. c3 {[%clk 0:04:41.8]} 6... d5 {[%clk 0:04:50.5]}
7. exd5 {[%clk 0:04:39.2]} 7... Nxd5 {[%clk 0:04:50.4]} 8. Re1 {[%clk
0:04:38.6]} 8... Ne5 {[%clk 0:04:48.3]} 9. Nxe5 {[%clk 0:04:32.6]} 9... Qd6
{[%clk 0:04:48.1]} 10. Nc4+ {[%clk 0:04:30.8]} 10... Qe7 {[%clk 0:04:43.3]} 11.
Rxe7+ {[%clk 0:04:29.1]} 11... Bxe7 {[%clk 0:04:43]} 12. cxd4 {[%clk 0:04:28.2]}
12... Be6 {[%clk 0:04:41.1]} 13. Nc3 {[%clk 0:04:27.4]} 13... Nxc3 {[%clk
0:04:38.9]} 14. bxc3 {[%clk 0:04:26.5]} 14... O-O-O {[%clk 0:04:37]} 15. Bf4
{[%clk 0:04:23.4]} 15... c5 {[%clk 0:04:35.2]} 16. Qa4 {[%clk 0:04:18.4]} 16...
cxd4 {[%clk 0:04:33.1]} 17. Qxa7 {[%clk 0:04:15.1]} 17... Kd7 {[%clk 0:04:31.5]}
18. Qxb7+ {[%clk 0:04:13.6]} 18... Ke8 {[%clk 0:04:29.9]} 19. Ne5 {[%clk
0:04:06.5]} 19... Bf6 {[%clk 0:04:27.8]} 20. Bb5+ {[%clk 0:04:04]} 20... Kf8
{[%clk 0:04:26.3]} 21. cxd4 {[%clk 0:04:03.1]} 21... g6 {[%clk 0:04:24.6]} 22.
Bh6+ {[%clk 0:04:00.6]} 22... Bg7 {[%clk 0:04:23]} 23. Bxg7+ {[%clk 0:03:58.6]}
23... Kxg7 {[%clk 0:04:21.9]} 24. Rd1 {[%clk 0:03:58.5]} 24... Bxa2 {[%clk
0:04:20.1]} 25. d5 {[%clk 0:03:54.2]} 25... Rhf8 {[%clk 0:04:18]} 26. Bc4 {[%clk
0:03:50.9]} 26... Bxc4 {[%clk 0:04:15.4]} 27. Nxc4 {[%clk 0:03:50.8]} 27... Rc8
{[%clk 0:04:13.7]} 28. Ne5 {[%clk 0:03:46.5]} 28... Rb8 {[%clk 0:04:12.6]} 29.
Qc7 {[%clk 0:03:43.9]} 29... Rbc8 {[%clk 0:04:10.3]} 30. Qd6 {[%clk 0:03:41.3]}
30... Rcd8 {[%clk 0:04:08.8]} 31. Nd7 {[%clk 0:03:39.3]} 31... Kh6 {[%clk
0:04:07]} 32. Nxf8 {[%clk 0:03:38]} 32... Rxd6 {[%clk 0:04:05.1]} 33. Re1 {[%clk
0:03:25.4]} 33... Rxd5 {[%clk 0:04:02.7]} 34. g3 {[%clk 0:03:24.4]} 34... Rd8
{[%clk 0:04:01.1]} 35. Nxg6 {[%clk 0:03:20.6]} 35... Kxg6 {[%clk 0:03:59.5]} 36.
Kg2 {[%clk 0:03:20.5]} 36... Kf6 {[%clk 0:03:57.5]} 37. Re4 {[%clk 0:03:19.5]}
37... Rd3 {[%clk 0:03:55.5]} 38. Rh4 {[%clk 0:03:17.4]} 38... Kg6 {[%clk
0:03:54.3]} 39. Re4 {[%clk 0:03:14.8]} 39... Rd2 {[%clk 0:03:52.5]} 40. h4
{[%clk 0:03:13.6]} 40... Rb2 {[%clk 0:03:50.5]} 41. Rf4 {[%clk 0:03:12.5]} 41...
f5 {[%clk 0:03:48.3]} 42. Rd4 {[%clk 0:03:06.2]} 42... Rb3 {[%clk 0:03:47]} 43.
Rd5 {[%clk 0:03:02.8]} 43... Kf6 {[%clk 0:03:44.9]} 44. Rd7 {[%clk 0:02:57.7]}
44... h5 {[%clk 0:03:43.2]} 45. Rh7 {[%clk 0:02:56.1]} 45... Kg6 {[%clk
0:03:41.7]} 46. Rh8 {[%clk 0:02:55.5]} 46... f4 {[%clk 0:03:37.4]} 47. gxf4
{[%clk 0:02:51.4]} 47... Kf5 {[%clk 0:03:35.4]} 48. Rxh5+ {[%clk 0:02:49.7]}
48... Kxf4 {[%clk 0:03:33.8]} 49. Rg5 {[%clk 0:02:46.6]} 49... Rb6 {[%clk
0:03:28.7]} 50. Rg3 {[%clk 0:02:43.1]} 50... Rb5 {[%clk 0:03:25.8]} 51. Rg8
{[%clk 0:02:36.8]} 51... Rb4 {[%clk 0:03:23.4]} 52. h5 {[%clk 0:02:32.4]} 52...
Rb5 {[%clk 0:03:20.8]} 53. h6 {[%clk 0:02:30.3]} 53... Rh5 {[%clk 0:03:18.3]}
54. Rh8 {[%clk 0:02:25.4]} 54... Kg5 {[%clk 0:03:16.2]} 55. Kg3 {[%clk
0:02:23.5]} 55... Kg6 {[%clk 0:03:14.5]} 56. Kg4 {[%clk 0:02:16.7]} 56... Rg5+
{[%clk 0:03:12]} 57. Kf4 {[%clk 0:02:13.1]} 57... Rf5+ {[%clk 0:03:09.6]} 58.
Ke3 {[%clk 0:02:11.4]} 58... Re5+ {[%clk 0:03:07.7]} 59. Kf3 {[%clk 0:02:07.7]}
59... Rf5+ {[%clk 0:03:05.9]} 60. Kg2 {[%clk 0:02:07.3]} 60... Rg5+ {[%clk
0:03:04.1]} 61. Kf1 {[%clk 0:02:06.9]} 61... Rc5 {[%clk 0:03:02.2]} 62. f3
{[%clk 0:02:02.9]} 62... Rc2 {[%clk 0:03:00.3]} 63. f4 {[%clk 0:01:51.9]} 63...
Rh2 {[%clk 0:02:57.9]} 64. Kg1 {[%clk 0:01:48]} 64... Rxh6 {[%clk 0:02:54.5]}
65. Rf8 {[%clk 0:01:45.7]} 65... Kg7 {[%clk 0:02:53]} 66. Ra8 {[%clk 0:01:43]}
66... Rf6 {[%clk 0:02:51.5]} 67. Ra4 {[%clk 0:01:42.2]} 67... Kg6 {[%clk
0:02:47.5]} 68. Kf2 {[%clk 0:01:41.6]} 68... Kf5 {[%clk 0:02:45.8]} 69. Kf3
{[%clk 0:01:41]} 69... Ra6 {[%clk 0:02:30.5]} 70. Rb4 {[%clk 0:01:31.7]} 70...
Rb6 {[%clk 0:02:28.6]} 71. Rc4 {[%clk 0:01:29.5]} 71... Rc6 {[%clk 0:02:26.7]}
72. Rd4 {[%clk 0:01:25.8]} 72... Rc3+ {[%clk 0:02:24.1]} 73. Kf2 {[%clk
0:01:23.9]} 73... Rc2+ {[%clk 0:02:22.7]} 74. Ke3 {[%clk 0:01:21.8]} 74... Rc3+
{[%clk 0:02:21.6]} 75. Rd3 {[%clk 0:01:21.4]} 75... Rxd3+ {[%clk 0:02:20.1]} 76.
Kxd3 {[%clk 0:01:21.3]} 76... Kxf4 {[%clk 0:02:18.3]} 1/2-1/2

[Event "Live Chess"]
[Site "Chess.com"]
[Date "2023.05.21"]
[Round "-"]
[White "nigelst"]
[Black "raminguy"]
[Result "1-0"]
[WhiteElo "1797"]
[BlackElo "1949"]
[TimeControl "300"]
[EndTime "17:06:16 PDT"]
[Termination "nigelst won by resignation"]

1. e4 {[%clk 0:04:58]} 1... e5 {[%clk 0:04:59.1]} 2. Nf3 {[%clk 0:04:56.7]} 2...
Nc6 {[%clk 0:04:58.6]} 3. Bb5 {[%clk 0:04:55.1]} 3... Nf6 {[%clk 0:04:57.5]} 4.
O-O {[%clk 0:04:53.2]} 4... Nxe4 {[%clk 0:04:57.1]} 5. d4 {[%clk 0:04:51]} 5...
Nd6 {[%clk 0:04:56.8]} 6. Bxc6 {[%clk 0:04:48.7]} 6... dxc6 {[%clk 0:04:56.7]}
7. dxe5 {[%clk 0:04:47.9]} 7... Nf5 {[%clk 0:04:55.9]} 8. Qxd8+ {[%clk
0:04:45.7]} 8... Kxd8 {[%clk 0:04:55.6]} 9. Nbd2 {[%clk 0:04:42]} 9... Bc5
{[%clk 0:04:49.8]} 10. h3 {[%clk 0:04:37.6]} 10... Ke7 {[%clk 0:04:47.7]} 11.
Ne4 {[%clk 0:04:35.2]} 11... Bb6 {[%clk 0:04:42.7]} 12. Bg5+ {[%clk 0:04:32.8]}
12... Ke6 {[%clk 0:04:38.1]} 13. Rad1 {[%clk 0:04:27.1]} 13... h6 {[%clk
0:04:36.8]} 14. Bc1 {[%clk 0:04:23.8]} 14... Ke7 {[%clk 0:04:22.4]} 15. g4
{[%clk 0:04:21.2]} 15... Be6 {[%clk 0:04:06.3]} 16. gxf5 {[%clk 0:04:18.1]}
16... Bxf5 {[%clk 0:04:06.2]} 17. Rfe1 {[%clk 0:04:10.3]} 17... Bxh3 {[%clk
0:04:00.6]} 18. b4 {[%clk 0:03:55.7]} 18... Bg4 {[%clk 0:03:57.1]} 19. Kg2
{[%clk 0:03:54.9]} 19... Bf5 {[%clk 0:03:44.8]} 20. c4 {[%clk 0:03:48.6]} 20...
a6 {[%clk 0:03:38.4]} 21. c5 {[%clk 0:03:47.3]} 21... Ba7 {[%clk 0:03:36.7]} 22.
Nd4 {[%clk 0:03:42.6]} 22... Bg6 {[%clk 0:03:26.1]} 23. Ng3 {[%clk 0:03:34]}
23... Rhe8 {[%clk 0:03:19.7]} 24. e6 {[%clk 0:03:32.2]} 24... Kf8 {[%clk
0:03:10.9]} 25. Ngf5 {[%clk 0:03:27.4]} 25... fxe6 {[%clk 0:03:04]} 26. Nxe6+
{[%clk 0:03:13.6]} 26... Rxe6 {[%clk 0:03:01.5]} 27. Rxe6 {[%clk 0:03:04.5]}
27... Bxf5 {[%clk 0:02:58]} 28. Re5 {[%clk 0:03:02.8]} 28... g6 {[%clk
0:02:27.5]} 29. Bxh6+ {[%clk 0:02:56]} 29... Kf7 {[%clk 0:02:26.8]} 30. Bg5
{[%clk 0:02:53.5]} 30... Rh8 {[%clk 0:02:19.4]} 31. Re7+ {[%clk 0:02:49]} 1-0

[Event "Live Chess"]
[Site "Chess.com"]
[Date "2023.05.21"]
[Round "-"]
[White "karimghalambaz"]
[Black "luckywookie"]
[Result "1-0"]
[WhiteElo "1281"]
[BlackElo "766"]
[TimeControl "300"]
[EndTime "17:06:37 PDT"]
[Termination "karimghalambaz won by resignation"]

1. d4 {[%clk 0:04:51.5]} 1... d5 {[%clk 0:04:56.4]} 2. Bf4 {[%clk 0:04:49.3]}
2... Nc6 {[%clk 0:04:43.4]} 3. e3 {[%clk 0:04:46.5]} 3... e6 {[%clk 0:04:40.6]}
4. Nf3 {[%clk 0:04:44.7]} 4... Bd6 {[%clk 0:04:40]} 5. Bg3 {[%clk 0:04:42.8]}
5... Bxg3 {[%clk 0:04:38.7]} 6. hxg3 {[%clk 0:04:41]} 6... Nf6 {[%clk
0:04:37.1]} 7. c3 {[%clk 0:04:39.7]} 7... Bd7 {[%clk 0:04:34]} 8. Bd3 {[%clk
0:04:38.1]} 8... Ne4 {[%clk 0:04:30.7]} 9. Nbd2 {[%clk 0:04:33.2]} 9... f5
{[%clk 0:04:20.3]} 10. g4 {[%clk 0:04:28.3]} 10... h6 {[%clk 0:03:59.5]} 11.
gxf5 {[%clk 0:04:23]} 11... exf5 {[%clk 0:03:57.8]} 12. Ne5 {[%clk 0:04:20.7]}
12... Nxe5 {[%clk 0:03:50.3]} 13. dxe5 {[%clk 0:04:18.4]} 13... Nxd2 {[%clk
0:03:43.4]} 14. Qxd2 {[%clk 0:04:15.9]} 14... Be6 {[%clk 0:03:42.2]} 15. O-O-O
{[%clk 0:04:11.3]} 15... Qd7 {[%clk 0:03:34]} 16. f4 {[%clk 0:04:08.8]} 16...
O-O-O {[%clk 0:03:31.7]} 17. Qc2 {[%clk 0:03:57.9]} 17... g6 {[%clk 0:03:21.8]}
18. g4 {[%clk 0:03:48]} 18... Qf7 {[%clk 0:03:05.4]} 19. gxf5 {[%clk 0:03:45.2]}
19... Bxf5 {[%clk 0:02:59.5]} 20. Bxf5+ {[%clk 0:03:42.6]} 20... Qxf5 {[%clk
0:02:55.4]} 21. Qxf5+ {[%clk 0:03:40.8]} 21... gxf5 {[%clk 0:02:54]} 22. Rh5
{[%clk 0:03:35.5]} 22... c6 {[%clk 0:02:44.9]} 23. Rxf5 {[%clk 0:03:30.5]} 23...
Rdg8 {[%clk 0:02:43]} 24. Rh1 {[%clk 0:03:16.8]} 24... Rg2 {[%clk 0:02:32.2]}
25. Rfh5 {[%clk 0:03:12.5]} 25... Kd7 {[%clk 0:02:29.4]} 26. Rxh6 {[%clk
0:03:10.3]} 26... Rxh6 {[%clk 0:02:27.6]} 27. Rxh6 {[%clk 0:03:07.3]} 27... Rg3
{[%clk 0:02:26.8]} 28. Kd2 {[%clk 0:03:04.8]} 28... Ke7 {[%clk 0:02:24.2]} 29.
Rh7+ {[%clk 0:02:59.4]} 29... Ke6 {[%clk 0:02:21.4]} 30. Rxb7 {[%clk 0:02:57]}
30... Kf5 {[%clk 0:02:20.3]} 31. Rxa7 {[%clk 0:02:53.7]} 31... Ke4 {[%clk
0:02:19.7]} 32. Rc7 {[%clk 0:02:47.4]} 32... Rxe3 {[%clk 0:02:16.9]} 33. Rxc6
{[%clk 0:02:44.6]} 33... Rg3 {[%clk 0:02:12.9]} 34. e6 {[%clk 0:02:41.7]} 34...
Rg2+ {[%clk 0:02:05.3]} 35. Kc1 {[%clk 0:02:36.6]} 35... Kd3 {[%clk 0:02:02.4]}
36. b4 {[%clk 0:02:25]} 36... Rxa2 {[%clk 0:01:52.6]} 37. e7 {[%clk 0:02:19]}
37... Re2 {[%clk 0:01:50.2]} 38. Rc7 {[%clk 0:02:11.7]} 38... Re1+ {[%clk
0:01:39.2]} 39. Kb2 {[%clk 0:02:09.3]} 39... Re2+ {[%clk 0:01:37.8]} 40. Kb3
{[%clk 0:02:05.2]} 40... Kd2 {[%clk 0:01:27.3]} 41. f5 {[%clk 0:02:00.1]} 41...
d4 {[%clk 0:01:16.1]} 42. cxd4 {[%clk 0:01:57.5]} 42... Re3+ {[%clk 0:01:15]}
43. Kc4 {[%clk 0:01:54.8]} 43... Rc3+ {[%clk 0:01:12.6]} 44. Kb5 {[%clk
0:01:53]} 44... Rxc7 {[%clk 0:01:11.3]} 45. e8=Q {[%clk 0:01:50.4]} 45... Rb7+
{[%clk 0:01:09.8]} 46. Kc5 {[%clk 0:01:47.1]} 46... Rc7+ {[%clk 0:01:08.3]} 47.
Kd5 {[%clk 0:01:41.1]} 47... Rc3 {[%clk 0:01:04]} 48. f6 {[%clk 0:01:34.2]}
48... Kd3 {[%clk 0:01:02]} 49. f7 {[%clk 0:01:31.8]} 49... Rc4 {[%clk
0:01:00.9]} 50. Qe4+ {[%clk 0:01:27]} 50... Kc3 {[%clk 0:00:58.9]} 51. Qe1+
{[%clk 0:01:22.7]} 51... Kd3 {[%clk 0:00:56.4]} 52. Qf1+ {[%clk 0:01:18.9]}
52... Kc3 {[%clk 0:00:53.2]} 53. Qxc4+ {[%clk 0:01:16.8]} 1-0

[Event "Live Chess"]
[Site "Chess.com"]
[Date "2023.05.21"]
[Round "-"]
[White "JoshMcK"]
[Black "Biranidun"]
[Result "0-1"]
[WhiteElo "1527"]
[BlackElo "2655"]
[TimeControl "300"]
[EndTime "17:06:43 PDT"]
[Termination "Biranidun won by resignation"]

1. e4 {[%clk 0:04:59.2]} 1... c5 {[%clk 0:04:59.1]} 2. c3 {[%clk 0:04:56.4]}
2... Nf6 {[%clk 0:04:55.4]} 3. e5 {[%clk 0:04:55.4]} 3... Nd5 {[%clk 0:04:54.7]}
4. Nf3 {[%clk 0:04:54.8]} 4... d6 {[%clk 0:04:52.9]} 5. exd6 {[%clk 0:04:52.4]}
5... Qxd6 {[%clk 0:04:52.8]} 6. d4 {[%clk 0:04:50.9]} 6... cxd4 {[%clk
0:04:52.7]} 7. Nxd4 {[%clk 0:04:48.6]} 7... a6 {[%clk 0:04:49.7]} 8. Be2 {[%clk
0:04:38.1]} 8... e5 {[%clk 0:04:48.3]} 9. Nf3 {[%clk 0:04:36.2]} 9... Nc6 {[%clk
0:04:47.3]} 10. O-O {[%clk 0:04:34.5]} 10... Be7 {[%clk 0:04:45.5]} 11. Re1
{[%clk 0:04:33.6]} 11... O-O {[%clk 0:04:44.4]} 12. Na3 {[%clk 0:04:14.4]} 12...
Be6 {[%clk 0:04:40.1]} 13. Nc4 {[%clk 0:04:12.1]} 13... Qc7 {[%clk 0:04:39.5]}
14. Bg5 {[%clk 0:04:02.8]} 14... f6 {[%clk 0:04:37.8]} 15. Bh4 {[%clk
0:03:57.2]} 15... Rad8 {[%clk 0:04:37.3]} 16. Qc2 {[%clk 0:03:52.3]} 16... b5
{[%clk 0:04:34]} 17. Ne3 {[%clk 0:03:48.7]} 17... Nf4 {[%clk 0:04:33.5]} 18. Bg3
{[%clk 0:03:42.8]} 18... Nxe2+ {[%clk 0:04:31]} 19. Qxe2 {[%clk 0:03:40.4]}
19... Bc5 {[%clk 0:04:27.7]} 20. b4 {[%clk 0:03:34.4]} 20... Bb6 {[%clk
0:04:25.1]} 21. a4 {[%clk 0:03:32.2]} 21... Bxe3 {[%clk 0:04:16.8]} 22. Qxe3
{[%clk 0:03:30.3]} 22... Ne7 {[%clk 0:04:15.8]} 23. axb5 {[%clk 0:03:26]} 23...
axb5 {[%clk 0:04:07.8]} 24. Ra7 {[%clk 0:03:17.7]} 24... Qd6 {[%clk 0:04:06.7]}
25. Nxe5 {[%clk 0:03:05.7]} 25... Nf5 {[%clk 0:02:56.5]} 26. Qe2 {[%clk
0:02:07.8]} 26... Nxg3 {[%clk 0:02:51.7]} 27. hxg3 {[%clk 0:01:38.6]} 27... fxe5
{[%clk 0:02:44]} 28. Qxe5 {[%clk 0:01:30.4]} 28... Qxe5 {[%clk 0:02:43.9]} 29.
Rxe5 {[%clk 0:01:28.6]} 29... Bc4 {[%clk 0:02:43.8]} 30. Ree7 {[%clk 0:01:25.7]}
30... Rf7 {[%clk 0:02:43.2]} 31. Rxf7 {[%clk 0:01:21.7]} 31... Bxf7 {[%clk
0:02:43.1]} 32. f3 {[%clk 0:01:17.6]} 32... Bc4 {[%clk 0:02:41.2]} 33. Kh2
{[%clk 0:01:11.9]} 33... Rd3 {[%clk 0:02:39.4]} 34. Ra3 {[%clk 0:01:07.1]} 34...
h6 {[%clk 0:02:34]} 35. g4 {[%clk 0:01:06.2]} 35... Kh7 {[%clk 0:02:31.6]} 36.
Kg3 {[%clk 0:01:05.1]} 36... Rd2 {[%clk 0:02:31.1]} 37. Kh3 {[%clk 0:01:00.1]}
37... Bf1 {[%clk 0:02:29.3]} 38. Kg3 {[%clk 0:00:57.1]} 38... Rxg2+ {[%clk
0:02:27.8]} 39. Kf4 {[%clk 0:00:56.5]} 39... Bc4 {[%clk 0:02:20.3]} 40. Ke3
{[%clk 0:00:45.1]} 40... Ra2 {[%clk 0:02:19.2]} 41. Rxa2 {[%clk 0:00:43]} 41...
Bxa2 {[%clk 0:02:19.1]} 0-1

[Event "Live Chess"]
[Site "Chess.com"]
[Date "2023.05.21"]
[Round "-"]
[White "Conradical12"]
[Black "DerbyKnight"]
[Result "0-1"]
[WhiteElo "1588"]
[BlackElo "1573"]
[TimeControl "300"]
[EndTime "17:07:00 PDT"]
[Termination "DerbyKnight won by resignation"]

1. e4 {[%clk 0:04:58.8]} 1... c6 {[%clk 0:04:58.7]} 2. Nf3 {[%clk 0:04:57.3]}
2... d5 {[%clk 0:04:57.9]} 3. exd5 {[%clk 0:04:55.9]} 3... cxd5 {[%clk 0:04:56]}
4. d4 {[%clk 0:04:55.5]} 4... Nc6 {[%clk 0:04:53.8]} 5. c4 {[%clk 0:04:55]} 5...
Bg4 {[%clk 0:04:49.2]} 6. Nc3 {[%clk 0:04:53.1]} 6... e6 {[%clk 0:04:44.3]} 7.
Qc2 {[%clk 0:04:51.6]} 7... Bxf3 {[%clk 0:04:37.9]} 8. gxf3 {[%clk 0:04:50.4]}
8... dxc4 {[%clk 0:04:33.8]} 9. Bxc4 {[%clk 0:04:47.2]} 9... Nf6 {[%clk
0:04:31.9]} 10. Qb3 {[%clk 0:04:45.5]} 10... Qd7 {[%clk 0:04:27.6]} 11. Be3
{[%clk 0:04:43.6]} 11... Bd6 {[%clk 0:04:19.5]} 12. O-O-O {[%clk 0:04:42.1]}
12... a6 {[%clk 0:04:09.9]} 13. d5 {[%clk 0:04:41.1]} 13... exd5 {[%clk
0:04:03.7]} 14. Bxd5 {[%clk 0:04:36.3]} 14... Nxd5 {[%clk 0:04:01.5]} 15. Nxd5
{[%clk 0:04:34.9]} 15... Qf5 {[%clk 0:03:37.4]} 16. Qxb7 {[%clk 0:04:13.2]}
16... Rc8 {[%clk 0:03:26.1]} 17. Nc3 {[%clk 0:04:03.9]} 17... Bf4 {[%clk
0:03:16.6]} 18. Rhe1 {[%clk 0:04:01.1]} 18... O-O {[%clk 0:03:14.5]} 19. Bxf4
{[%clk 0:03:58.6]} 19... Qxf4+ {[%clk 0:03:13]} 20. Kb1 {[%clk 0:03:58.4]} 20...
Nb4 {[%clk 0:03:00.9]} 21. Qe7 {[%clk 0:03:50.4]} 21... Qf5+ {[%clk 0:02:55.6]}
22. Re4 {[%clk 0:03:43.1]} 22... Nc6 {[%clk 0:02:29.7]} 23. Qd6 {[%clk
0:03:38.1]} 23... h5 {[%clk 0:02:17.4]} 24. Ka1 {[%clk 0:03:34.8]} 24... Qxf3
{[%clk 0:02:09.9]} 25. Rg1 {[%clk 0:03:19.2]} 25... Qxf2 {[%clk 0:02:06.1]} 26.
Ree1 {[%clk 0:03:16.8]} 26... Nd4 {[%clk 0:01:55.2]} 0-1

[Event "Live Chess"]
[Site "Chess.com"]
[Date "2023.05.21"]
[Round "-"]
[White "Doge_Dandolo"]
[Black "therealab0ne"]
[Result "1-0"]
[WhiteElo "1983"]
[BlackElo "708"]
[TimeControl "300"]
[EndTime "17:07:26 PDT"]
[Termination "Doge_Dandolo won by resignation"]

1. Nf3 {[%clk 0:04:44.2]} 1... c5 {[%clk 0:04:56.1]} 2. c4 {[%clk 0:04:41.8]}
2... d5 {[%clk 0:04:40.5]} 3. cxd5 {[%clk 0:04:37.4]} 3... Qxd5 {[%clk
0:04:39.1]} 4. g3 {[%clk 0:04:32]} 4... Nf6 {[%clk 0:04:25.6]} 5. Bg2 {[%clk
0:04:29.9]} 5... Bg4 {[%clk 0:04:12.2]} 6. O-O {[%clk 0:04:27.6]} 6... Ne4
{[%clk 0:03:54.7]} 7. d3 {[%clk 0:04:24.2]} 7... Nxg3 {[%clk 0:03:34.5]} 8. hxg3
{[%clk 0:04:19.1]} 8... e5 {[%clk 0:03:14.1]} 9. Nc3 {[%clk 0:04:12.7]} 9... Qd7
{[%clk 0:03:10.5]} 10. Ne4 {[%clk 0:04:06.5]} 10... Bxf3 {[%clk 0:02:49.5]} 11.
Bxf3 {[%clk 0:04:04.7]} 11... Nc6 {[%clk 0:02:42.6]} 12. Be3 {[%clk 0:04:02]}
12... b6 {[%clk 0:02:37.1]} 13. Rc1 {[%clk 0:03:59.2]} 13... Ne7 {[%clk
0:02:32.2]} 14. Nxc5 {[%clk 0:03:55.8]} 14... bxc5 {[%clk 0:02:31]} 15. Bxa8
{[%clk 0:03:54.6]} 15... Nf5 {[%clk 0:02:27.7]} 16. Bxc5 {[%clk 0:03:51]} 16...
Bxc5 {[%clk 0:02:12.1]} 17. Rxc5 {[%clk 0:03:47.5]} 17... O-O {[%clk 0:01:57.7]}
18. Bg2 {[%clk 0:03:44.1]} 18... Re8 {[%clk 0:01:50.5]} 19. Qc2 {[%clk
0:03:41.3]} 19... Nd6 {[%clk 0:01:37.1]} 20. Bc6 {[%clk 0:03:36.7]} 20... Qc8
{[%clk 0:01:13.4]} 21. Bxe8 {[%clk 0:03:32.3]} 21... Qxe8 {[%clk 0:01:12.8]} 22.
Rc6 {[%clk 0:03:28.6]} 22... Qe7 {[%clk 0:01:03]} 1-0